Cogmind - Beta 13 @@@ ROGUE MODE // 2024.04.14 @ 14:54:45 Player: Exceptionally Mediocre Result: Destroyed by X9-IZH(R) with Subdweller Laser Performance ------------- Evolutions (0) 0 Regions Visited (2) 400 Robots Destroyed (27) 135 Value Destroyed (535) 535 Prototype IDs (0) 0 Alien Tech Used (0) 0 Bonus (0) 0 TOTAL SCORE: 1070 Bonus ------- None Cogmind --------- Core Integrity 0/250 Matter 208/300 Energy 74/250 System Corruption 0% Temperature Cool (6) Movement Rolling (140) Ox4 Location -10/Subcaves Parts ------- > --- POWER (1) -------- Ion Engine > --- PROPULSION (2) --- Wheel Wheel > --- UTILITY (2) ------ Huge Storage Unit Targeting Computer > --- WEAPON (2) ------- Small Laser > --- INVENTORY (25) --- Ion Engine Ion Engine Ion Engine Light Ion Engine Wheel Wheel Improved Heat Sink Large Battery (200) High-capacity Matter Pod (196) Weight Redist. System Subdweller Laser Mining Laser Hammer Peak State ------------ > --- POWER ------------ Light Ion Engine > --- PROPULSION ------- Wheel Compact Wheel > --- UTILITY ---------- Huge Storage Unit Light Armor Plating > --- WEAPON ----------- Medium Laser Grenade Launcher > --- INVENTORY -------- Ion Engine Ion Engine Ion Engine Light Ion Engine Wheel Wheel Wheel Wheel Improved Heat Sink Large Battery High-capacity Matter Pod Weight Redist. System Targeting Computer Small Laser Assault Rifle Mining Laser Hammer [Rating: 9] Favorites ----------- Power Light Ion Engine Engine Light Ion Engine Propulsion Wheel Wheel Wheel Utility Huge Storage Unit Storage Huge Storage Unit Processor Targeting Computer Protection Light Armor Plating Weapon Grenade Launcher Energy Gun Medium Laser Ballistic Gun Assault Rifle Launcher Grenade Launcher Impact Weapon Hammer Build | -11 -10 -10 ------- Run | Yrd Mat Sub Slots Evolved . | . . . Power . | . . . Propulsion . | . . . Utility . | . . . Weapon . | . . . Parts Attached 21 | 6 6 9 Power 3 | 1 1 1 Engine 3 | 1 1 1 Core . | . . . Reactor . | . . . Propulsion 4 | 2 . 2 Treads . | . . . Leg . | . . . Wheel 4 | 2 . 2 Hover . | . . . Flight . | . . . Utility 5 | 1 3 1 Device . | . . . Storage 3 | 1 2 . Processor 1 | . . 1 Hackware . | . . . Protection 1 | . 1 . Artifact . | . . . Weapon 9 | 2 2 5 Energy Gun 4 | 2 1 1 Energy Cannon . | . . . Ballistic Gun 2 | . . 2 Ballistic Cannon . | . . . Launcher 2 | . 1 1 Special Weapon . | . . . Impact Weapon 1 | . . 1 Slashing Weapon . | . . . Piercing Weapon . | . . . Special Melee Weapon . | . . . Unidentified Prototypes . | . . . Parts Lost 7 | . . 7 Power 1 | . . 1 Propulsion 2 | . . 2 Utility 1 | . . 1 Weapon 3 | . . 3 Highest Loss Streak 5 | . . 5 To Critical Strikes 1 | . . 1 Average Slot Usage (%) 92 | . 91 98 Engine 13 | . 14 13 Wheel 27 | . 28 27 Storage 14 | . 14 14 Protection 7 | . 5 13 Energy Gun 14 | . 14 13 Ballistic Gun 1 | . . 11 Launcher 11 | . 13 . Naked Turns . | . . . Heaviest Build 91 | 12 91 90 Greatest Support 26 | 26 26 26 Greatest Overweight (x) 3 | . 3 3 Average Overweight (x) 2 | . 2 3 Largest Inventory Capacity 25 | 8 25 25 Average Capacity 22 | 7 21 25 Most Carried 19 | 2 19 18 Average Carried 13 | . 13 17 Final Capacity 25 | 8 25 25 Final Carried 18 | 2 18 13 Class Distribution -------------------- 100% | Mutant Dominant Class ---------------- Mutant | -10/Materials Mutant | -10/Subcaves Resources | -11 -10 -10 ----------- Run | Yrd Mat Sub Matter Collected 756 | 177 515 64 Remotely . | . . . Salvage Created 617 | . 553 64 Parts 52 | . 48 4 Haulers Intercepted 2 | . 2 . Recyclers Shooed 1 | . 1 . Parts Field Recycled . | . . . Retrieved Matter . | . . . Parts Self-Destructed . | . . . Prevented . | . . . Kills | -11 -10 -10 ------- Run | Yrd Mat Sub Combat Hostiles Destroyed 16 | . 14 2 Guns 2 | . 1 1 AOE 14 | . 13 1 Classes Destroyed 9 | . 8 1 Worker 1 | . 1 . Builder 3 | . 3 . Hauler 2 | . 2 . Recycler 1 | . 1 . Operator 1 | . 1 . Watcher 3 | . 3 . Swarmer 6 | . 6 . Grunt 8 | . 8 . Subdweller 2 | . . 2 Best Kill Streak 8 | . 8 2 Combat Bots Only 4 | . 4 2 Max Kills in Single Turn 3 | . 3 1 Gunslinging . | . . . Exploded 2 | . 2 1 Melee . | . . . Uniques/NPCs Destroyed . | . . . Combat | -11 -10 -10 -------- Run | Yrd Mat Sub Hostile Shots Fired 62 | . 22 40 Missed 17 | . 9 8 Damage Taken 854 | . 161 693 Core 261 | . 27 234 Absorbed by Shields . | . . . Core Remaining (%) 100 | 100 . . Volleys Fired 78 | . 59 19 Largest 2 | . 1 2 Hottest 70 | . 50 70 Shots Fired 94 | . 59 35 Gun 75 | . 41 34 Cannon . | . . . Launcher 19 | . 18 1 Special . | . . . Kinetic 16 | . . 16 Thermal 48 | . 30 18 Explosive 19 | . 18 1 Electromagnetic 11 | . 11 . Robot Hit Streak 14 | . 5 14 Robot Miss Streak 5 | . 5 1 Penetration Max . | . . . Secondary Targets . | . . . Shots Hit Robots 52 | . 24 28 Core Hits 40 | . 34 6 Critical Kills . | . . . Critical Parts Destroyed . | . . . Critical Strikes 4 | . 3 1 Burn 4 | . 3 1 Melee Attacks 1 | . . 1 Impact 1 | . . 1 Slashing . | . . . Piercing . | . . . Sneak Attacks . | . . . Combat Hostiles . | . . . Follow-up Attacks . | . . . Damage Inflicted 1546 | . 1252 294 Guns 466 | . 258 208 Cannons . | . . . Explosions 1080 | . 994 86 Melee . | . . . Ramming . | . . . Kinetic 101 | . . 101 Thermal 372 | . 265 107 Explosive 1014 | . 928 86 Electromagnetic 59 | . 59 . Impact . | . . . Slashing . | . . . Piercing . | . . . Highest Corruption . | . . . Average Corruption . | . . . Corruption Purged . | . . . Corruption Blocked . | . . . Overload Shots . | . . . Overflow Damage 32 | . 26 6 Projectiles . | . . . Explosions 32 | . 26 6 Melee . | . . . Knockbacks . | . . . Impact . | . . . Kinetic . | . . . Secondary . | . . . Self-Inflicted Damage 77 | . 40 37 Shots 3 | . 2 1 Rammed . | . . . Targets Rammed . | . . . Kicked . | . . . Crushed . | . . . Highest Temperature 50 | . 50 . Average Temperature 20 | . 20 . Received Heat Transfer 99 | . 21 78 Siege Activations . | . . . Robots Corrupted . | . . . Combat Hostiles . | . . . Parts Fried . | . . . Impact Corruptions . | . . . Robots Melted . | . . . Combat Hostiles . | . . . Parts Melted 1 | . 1 . Heat Transferred 1273 | . 914 359 Parts Sabotaged . | . . . Parts Stolen . | . . . Parts Stripped . | . . . Power Chain Reactions 1 | . 1 . Alert | -11 -10 -10 ------- Run | Yrd Mat Sub Peak Influence 380 | . 380 . Initial . | . . . Average 240 | . 249 . Maximum Alert Level 1 | . 1 . Low Security (%) 21 | 100 18 . Level 1 78 | . 81 . Level 2 . | . . . Level 3 . | . . . Level 4 . | . . . Level 5 . | . . . High Security . | . . . Max Security . | . . . Squads Dispatched 2 | . 2 . Investigation 1 | . 1 . Extermination . | . . . Reinforcement 1 | . 1 . Assault . | . . . Garrison . | . . . Intercept . | . . . Searches Triggered . | . . . Construction Impeded . | . . . Haulers Reinforced . | . . . Active Scanning Responses . | . . . Cargo Convoy Interrupts . | . . . Stealth | -11 -10 -10 --------- Run | Yrd Mat Sub Distress Signals 2 | . 2 . Communications Jammed . | . . . Distress Signals . | . . . Times Spotted 32 | . 28 4 Peak Tracking Total 4 | . 4 2 Tactical Retreats . | . . . Traps | -11 -10 -10 ------- Run | Yrd Mat Sub Traps Triggered 1 | . 1 . Indirectly . | . . . Trap Hack Attempts . | . . . Triggered . | . . . Disarmed . | . . . Reprogrammed . | . . . Reused . | . . . Traps Extracted . | . . . Installed . | . . . Triggered . | . . . Machines | -11 -10 -10 ---------- Run | Yrd Mat Sub Machines Disabled 2 | . 2 . Max in Single Turn 1 | . 1 . Machines Repaired . | . . . Machines Dismantled . | . . . Machines Sabotaged . | . . . Overloaded Fab Kills . | . . . Hacking | -11 -10 -10 --------- Run | Yrd Mat Sub Machines Accessed 5 | . 5 . Terminals 5 | . 5 . Fabricators . | . . . Repair Stations . | . . . Recycling Units . | . . . Scanalyzers . | . . . Garrison Access . | . . . Total Hacks 6 | . 6 . Successful 5 | . 5 . Failed 1 | . 1 . Catastrophic . | . . . Database Lockouts . | . . . Manual 6 | . 6 . Terminals 6 | . 6 . Fabricators . | . . . Repair Stations . | . . . Recycling Units . | . . . Scanalyzers . | . . . Garrison Access . | . . . Terminal Hacks . | . . . Fabricator Hacks . | . . . Repair Station Hacks . | . . . Recycling Unit Hacks . | . . . Scanalyzer . | . . . Garrison Access Hacks . | . . . Unauthorized Hacks 5 | . 5 . Terminals 5 | . 5 . Botnet 5 | . 5 . Fabricators . | . . . Repair Stations . | . . . Recycling Units . | . . . Scanalyzers . | . . . Garrison Access . | . . . Data Cores Recovered . | . . . Used . | . . . Hacking Detections 1 | . 1 . Full Trace Events . | . . . Feedback Events . | . . . Feedback Blocked . | . . . Robot Schematics Acquired . | . . . Robots Built . | . . . Authchips . | . . . Time . | . . . Total Robot Build Rating . | . . . Part Schematics Acquired . | . . . Parts Built . | . . . Authchips . | . . . Time . | . . . Total Part Build Rating . | . . . Parts Repaired . | . . . Time . | . . . Parts Recycled . | . . . Recycled Matter . | . . . Retrieved Matter . | . . . Retrieved Components . | . . . Parts Scanalyzed . | . . . Part Schematics Acquired . | . . . Parts Damaged . | . . . Bothacking | -11 -10 -10 ------------ Run | Yrd Mat Sub Used RIF Installer . | . . . Robots Hacked . | . . . Non-combat . | . . . Combat . | . . . Robot Hacks Applied . | . . . Relay Couplers Released . | . . . Fabnet Peak Effective % . | . . . Robots Rewired . | . . . Allies Hacked . | . . . Hacks Repelled . | . . . Allies | -11 -10 -10 -------- Run | Yrd Mat Sub Total Allies . | . . . Largest Group . | . . . Highest-Rated Group . | . . . Highest-Rated Ally . | . . . Total Orders . | . . . Ally Attacks . | . . . Total Damage . | . . . Kills . | . . . Allies Corrupted . | . . . Allies Melted . | . . . Intel | -11 -10 -10 ------- Run | Yrd Mat Sub Robot Analysis Total . | . . . Derelict Logs Recovered . | . . . Drone Launches . | . . . Drone Recoveries . | . . . Exploration | -11 -10 -10 ------------- Run | Yrd Mat Sub Turns Passed 1466 | 43 1174 249 Spaces Moved 982 | 36 815 131 Core 1 | 1 . . Treads . | . . . Legs . | . . . Wheels 981 | 35 815 131 Hover . | . . . Flight . | . . . Fastest Speed 50 | 50 90 135 Average Speed 124 | 89 124 135 Slowest Speed 135 | 100 135 135 Overloaded Moves . | . . . Propulsion Burnouts . | . . . Robots Hopped . | . . . Cave-ins Triggered . | . . . Exploration Rate (%) 38 | 3 98 13 Regions Visited 2 Branch Regions 1 Pre-discovered Areas . | . . . Known Exits Taken . | . . . Unknown Exits Taken 2 | 1 1 . Scrap Searched . | . . . Spaces Dug 5 | . 5 . Terrain Destroyed 113 | . 106 7 Melee . | . . . Projectile . | . . . AOE 113 | . 106 7 Terrain Rammed . | . . . Walls Destroyed . | . . . Machines Disabled . | . . . Actions | -11 -10 -10 --------- Run | Yrd Mat Sub Total 1132 | 43 923 166 Wait 8 | . 3 5 Move 980 | 35 814 131 Hop . | . . . Pick Up 30 | 2 27 1 Fast Attach 7 | 6 1 . Attach 7 | . 1 6 Detach 1 | . 1 . Swap 7 | . 4 3 Drop 13 | . 13 . Fire 78 | . 59 19 Melee 1 | . . 1 Ram . | . . . Kick . | . . . Crush . | . . . Escape Stasis . | . . . Rewire . | . . . Trap . | . . . Miscellaneous . | . . . Route ------- -11/Scrapyard -10/Materials (discovered 5 exits: [*Mat x3] / [*Min] / [*Sub]) -10/Subcaves History --------- Turn | Location | Event 18 | -11/Scrapyard | Discovered new exit (range 15) 44 | -11/Scrapyard | Entered Materials 229 | -10/Materials | Discovered new exit (range 16) 300 | -10/Materials | Build established: Mutant 455 | -10/Materials | Discovered new exit (range 4) 625 | -10/Materials | Discovered new exit (range 16) 1152 | -10/Materials | Discovered new exit (range 4) 1204 | -10/Materials | Discovered new exit (range 11) 1218 | -10/Materials | Entered Subcaves 1293 | -10/Subcaves | Core integrity fell below 50% 1314 | -10/Subcaves | Core integrity fell below 20% 1467 | -10/Subcaves | Destroyed by X9-IZH(R) with Subdweller Laser Last Messages --------------- GOAL=ESCAPE 01282_ Q0-XTP(R) suffers critical hit (Burn). 01296_ Med. Laser destroyed. 01301_ Q0-XTP(R) destroyed. 01301_ Grenade Launcher destroyed. 01301_ Destroyed Grenade Launcher. 01306_ ZL-VPG(R) affixes Scrap Shield Fragment to Scrap Shield. 01313_ ZL-VPG(R) destroyed. 01314_ Subatomizers dissect the Sub. Optics. 01316_ Acquired 24 matter. 01317_ Acquired 40 matter. 01320_ Acquired Sub. Laser. 01324_ The unstable cave ceiling collapses. 01457_ Lgt. Armor Plating destroyed. 01459_ Lgt. Ion Engine destroyed. 01459_ Critical hit (Destroy). 01459_ Com. Wheel destroyed. 01461_ Assault Rifle destroyed. 01465_ Wheel destroyed. Map ----- +----------------------------------------------------+ | | | | | | | | | ?????????????????????????????????????????????????? | | ?????????????????????????????????????????????????? | | ?????????????????????????????????????????????????? | | ?????????????????????????????????????????????????? | | ?????????????????????????????????????????????????? | | ?????????????????????????????????????????????????? | | ?????????????????????????????????????????????????? | | ?????????????????????????????????????????????????? | | ?????????????????????????????????????????????????? | | ?????????????????????????????????????????????????? | | ?????????????????????????????????????????????????? | | ?????????????????????????????????????????????????? | | ?????????????????????????????????????????????????? | | ?????????????????????????????????????????????????? | | ?????????????????????????????????????????????????? | | ?????????????????????????????###????????????###### | | ?????????????????????????????# #???????####?# | | ?????????????????????????????# ####???# ### | | ?????????????????????????##### ##?? ### | | ????????????????????????## ##? #??## | | ???????????????????????## ## #?????## | | ???????????????????????# @ #???????### | | ?????????????????????""##R" R #?????????? | | ?????????????????????"""" " ##### ##?????????? | | ?????????????????????"#"#<" ##### #??????####? | | ??????????????????????### " ###?# ##????## #? | | ????????????????????????# " ##???# ###### ## | | ????????????????????????# "##????## ### | | ????????????????????????# "??????# | | ????????????????????????"""??????## | | ???????????????????????? ""???# ##### # | | ?????????????????????????? "" ##???#### | | ?????????????????????????? ## #???????## | | ????????????????????????? ##?###????????### | | ?????????????????????????" ????????????????## | | ?????????????????????????######??????????????????? | | ?????????????????????????????????????????????????? | | ?????????????????????????????????????????????????? | | ?????????????????????????????????????????????????? | | ?????????????????????????????????????????????????? | | ?????????????????????????????????????????????????? | | ?????????????????????????????????????????????????? | | ?????????????????????????????????????????????????? | | ?????????????????????????????????????????????????? | | ?????????????????????????????????????????????????? | | ?????????????????????????????????????????????????? | +----------------------------------------------------+ Best States ------------- Heat Dissipation 25 Energy Generation 10 Energy Capacity 125 Matter Stores 300 Matter Capacity 300 Sight Range 16 Terrain Scan Density 10 Armor Coverage 150 Evasion (%) 42 Targeting Accuracy 5 Item Schematics ----------------- None Robot Schematics ------------------ None Fabricated ------------ Nothing Alien Tech Used ----------------- None Achievements -------------- None Challenges ------------ None Game ------ Seed HardlightUtilityDesublimator Manual? 0 Play Time 00:15:32 Cumulative 53.8 hours Start 2024.04.14 @ 14:39:57 End 2024.04.14 @ 14:54:45 Sessions 1 Manual Loads 0 Difficulty Rogue Special Mode None Game No. 61 Rogue 61 Adventurer 0 Explorer 0 Win Type - Total 0 Types 0/0/0/0/0/0/0/0/0 Lore% 17 Gallery% 37 Achievement% 28 Wizard Run 0 Options --------- Layout 1 ASCII 0 Keyboard 1 Movement Vi Keybinds 0 Fullscreen 1 Font 24/Smallcaps Map View 50x35 Zoom Use 0% Tactical HUD 1 Map Filters NONE Filters NONE Steam 1 RUN: 9a551bdc-ff4b-466b-8763-993911652923